Cogmind - Beta 16 @@@ ROGUE MODE // 2025.11.17 @ 21:48:42 Player: H3-MLN Result: Destroyed by B-86 Titan with Railgun Performance ------------- Evolutions (6) 3000 Regions Visited (9) 1800 Robots Destroyed (45) 225 Value Destroyed (1813) 1813 Prototype IDs (70) 1400 Alien Tech Used (0) 0 Bonus (4400) 4400 TOTAL SCORE: 12638 Bonus ------- High Alert Combat Kills 137 Follower Combat Kills 1996 Registered with UFD 300 Met Optimus in HQ 500 Met Warlord at Base 500 MAIN.C Attacked Warlord 500 Warlord Defense Kills 1012 Friendly Fire -545 Cogmind --------- Core Integrity 0/1150 Matter 300/300 Energy 315/315 System Corruption 5% Temperature Cool (9) Movement Walking (260) Ox2 Location -3/Proximity Caves Parts ------- > --- POWER (1) -------- Neutrino Core > --- PROPULSION (2) --- Myomer Leg > --- UTILITY (14) ----- Large Storage Unit Makeshift Salvage Targeting Computer Advanced Targeting Computer Expert System (Blank) Advanced Transmission Jammer Ghost Barrier A0-MCA's Component Scanner > --- WEAPON (2) ------- Vortex Cannon Phasing Sabre > --- INVENTORY (15) --- Neutrino Core Enhanced Flexi-carbon Leg Energy Well (350) Field Manipulator Advanced Trap Extractor (8/8 Fire) Hypervelocity Railgun Vortex Catalyst Activator (10) LU-1G1's Laser Shovel CPS Tube (1) Multitool Molecular Deconstructor Large Botcube Peak State ------------ > --- POWER ------------ Cooled Fission Core > --- PROPULSION ------- Myomer Leg Advanced VSS Leg > --- UTILITY ---------- Coolant Network Large Storage Unit Energy Well Experimental Sensor Array Makeshift Salvage Targeting Computer Advanced Targeting Computer Experimental Melee Analysis Suite Experimental Core Analyzer Expert System Advanced Transmission Jammer Centrium Medium Armor Plating Ghost Barrier A0-MCA's Component Scanner > --- WEAPON ----------- Heavy Gatling Laser Phasing Sabre > --- INVENTORY -------- Enhanced Flexi-carbon Leg Enhanced Flexi-carbon Leg Field Manipulator Advanced Trap Extractor Vortex Cannon Vortex Catalyst Activator LU-1G1's Laser Shovel CPS Tube Multitool Molecular Deconstructor DRS Beacon Large Botcube [Rating: 144] Favorites ----------- Power Subdweller Power Source Engine Subdweller Power Source Power Core Micro Fission Core Reactor Light Antimatter Reactor Propulsion Armored Leg Leg Armored Leg Utility Improved Heat Sink Device Improved Heat Sink Storage Large Storage Unit Processor Makeshift Salvage Targeting Computer Hackware Ghost Barrier Protection Makeshift Light Armor Plating Weapon Heavy Machine Gun Energy Gun Heavy Gatling Laser Energy Cannon Phase Cannon Ballistic Gun Heavy Machine Gun Launcher Grenade Launcher Special Weapon CPS Tube Impact Weapon Heavy Mace Slashing Weapon Phasing Sabre Piercing Weapon Plasma Lance Special Melee Weapon Datajack Build | -11 -10 -10 -7 -5 -4 -4 -4 -4 -3 ------- Run | Yrd Mat Sub Scr Fac Fac Upp Upp War Pro Slots Evolved 12 | . . . . 10 2 . . . . Power . | . . . . . . . . . . Propulsion . | . . . . . . . . . . Utility 12 | . . . . 10 2 . . . . Weapon . | . . . . . . . . . . Parts Attached 102 | 6 3 4 13 28 10 6 4 27 1 Power 15 | 1 2 1 . 5 1 1 . 3 1 Engine 6 | 1 1 1 . 2 . 1 . . . Core 8 | . 1 . . 3 . . . 3 1 Reactor 1 | . . . . . 1 . . . . Propulsion 13 | 2 . . 2 1 3 . . 5 . Treads . | . . . . . . . . . . Leg 13 | 2 . . 2 1 3 . . 5 . Wheel . | . . . . . . . . . . Hover . | . . . . . . . . . . Flight . | . . . . . . . . . . Utility 43 | 1 1 . 4 13 5 4 3 12 . Device 18 | . 1 . . 7 3 2 1 4 . Storage 5 | 1 . . 2 . . . 1 1 . Processor 9 | . . . 1 4 . 2 . 2 . Hackware 1 | . . . . . . . . 1 . Protection 10 | . . . 1 2 2 . 1 4 . Artifact . | . . . . . . . . . . Weapon 31 | 2 . 3 7 9 1 1 1 7 . Energy Gun 5 | 2 . 1 1 1 . . . . . Energy Cannon 5 | . . 1 1 . . . . 3 . Ballistic Gun 7 | . . . 1 4 . 1 . 1 . Ballistic Cannon . | . . . . . . . . . . Launcher 1 | . . 1 . . . . . . . Special Weapon 7 | . . . 3 2 1 . . 1 . Impact Weapon 2 | . . . . 2 . . . . . Slashing Weapon 2 | . . . . . . . 1 1 . Piercing Weapon 1 | . . . . . . . . 1 . Special Melee Weapon 1 | . . . 1 . . . . . . Unidentified Prototypes 3 | . . . 1 2 . . . . . Corrupted Parts 1 | . . . . . . . . 1 . System Corruption 1 | . . . . . . . . 1 . Parts Lost 29 | . . . . 3 1 5 . 18 2 Power 6 | . . . . 2 . 2 . 2 . Propulsion 4 | . . . . . . . . 3 1 Utility 16 | . . . . 1 1 3 . 10 1 Weapon 3 | . . . . . . . . 3 . Highest Loss Streak 10 | . . . . 2 1 2 . 10 2 To Critical Strikes 1 | . . . . . . . . 1 . Average Backups 8 | 1 6 6 5 11 9 12 13 11 9 Power . | . 2 1 . . . . . . . Propulsion . | . . 1 . . . . . . 1 Utility 1 | . . . 1 2 1 2 1 1 2 Weapon 3 | . 3 3 1 3 3 5 7 7 3 Tool/Special . | . . . . . . . . . . Unused Backups 34 | . 1 2 19 2 2 . . 3 5 Power 1 | . . . . . . . . . 1 Propulsion 4 | . . 1 1 . . . . 1 1 Utility 14 | . . . 10 2 1 . . . 1 Weapon 15 | . 1 1 8 . 1 . . 2 2 Tool/Special . | . . . . . . . . . . Average Slot Usage (%) 87 | . 95 100 85 77 92 97 93 90 67 Engine 7 | . 13 14 10 2 . 3 . 3 . Leg 20 | . 28 28 28 11 10 10 10 9 10 Device 16 | . 10 14 13 17 25 25 24 19 5 Storage 6 | . 14 14 5 5 5 5 9 9 8 Processor 11 | . . . . 22 26 30 31 30 26 Protection 2 | . . . . 4 8 9 6 5 . Energy Gun 2 | . 28 19 . . . 3 4 . . Energy Cannon 2 | . . 8 2 . . . . 2 4 Ballistic Gun 7 | . . . 12 6 . 3 4 1 . Special Weapon 1 | . . . . . . . . 3 . Special Melee Weapon 3 | . . . 7 . . . . . . Peak Build Rating 144 | 6 11 16 30 101 113 109 104 144 96 Average Rating 52 | 5 8 13 20 75 103 104 101 107 90 On Entrance 54 | . 6 10 16 30 91 106 100 100 84 Avg Prop Armor Cover (%) . | . . . . . . . . . . Naked Turns . | . . . . . . . . . . Heaviest Build 75 | 12 15 23 58 61 65 65 47 75 53 Greatest Support 53 | 20 20 20 29 31 40 40 40 53 53 Greatest Overweight (x) 14 | . . 1 1 1 1 1 1 14 . Average Overweight (x) . | . . . . . 1 1 1 . . Largest Inventory Capacity 20 | 8 8 8 20 15 15 15 15 15 15 Average Capacity 11 | 7 8 8 9 15 15 15 15 15 15 Most Carried 15 | 2 8 8 15 15 15 15 15 15 15 Average Carried 9 | 1 6 7 6 14 14 14 14 14 13 Final Capacity 15 | 8 8 8 15 15 15 15 15 15 15 Final Carried 15 | 2 8 8 15 14 14 15 15 15 15 Class Distribution -------------------- 60% | Mutant 13% | Derelict-Mutant 12% | Scavenger-Mutant 7% | Scavenger-Gladiator 4% | Trapper-Mutant Dominant Class ---------------- Mutant | -10/Materials Mutant | -10/Subcaves Mutant | -7/Scraptown Scavenger-Mutant | -5/Factory Scavenger-Gladiator | -4/Factory Scavenger-Mutant | -4/Upper Caves Derelict-Mutant | -4/Upper Caves Trapper-Mutant | -4/Warlord Scavenger-Mutant | -3/Proximity Caves Resources | -11 -10 -10 -7 -5 -4 -4 -4 -4 -3 ----------- Run | Yrd Mat Sub Scr Fac Fac Upp Upp War Pro Matter Collected 2995 | 260 30 80 210 1043 518 271 95 461 27 Remotely 154 | . . . . 154 . . . . . Salvage Created 2972 | 159 73 32 . 946 601 284 130 606 141 Parts 128 | 6 3 9 . 35 18 8 8 31 10 Haulers Intercepted 1 | . . . . . 1 . . . . Recyclers Shooed 1 | . . . . 1 . . . . . Parts Field Recycled . | . . . . . . . . . . Retrieved Matter . | . . . . . . . . . . Parts Self-Destructed 60 | . . 15 . . . 44 1 . . Prevented 8 | . . . . . . 3 5 . . Parts Restored . | . . . . . . . . . . Kills | -11 -10 -10 -7 -5 -4 -4 -4 -4 -3 ------- Run | Yrd Mat Sub Scr Fac Fac Upp Upp War Pro Combat Hostiles Destroyed 26 | . 1 4 . 6 5 3 . 7 . Melee 2 | . . . . . 2 . . . . Guns 12 | . 1 1 . 6 . 2 . 2 . Cannons 5 | . . . . . . . . 5 . AOE 4 | . . 3 . . . 1 . . . Classes Destroyed 19 | 2 1 1 . 3 3 2 2 5 . Worker 4 | . . . . 4 . . . . . Builder 2 | . . . . . 2 . . . . Tunneler 4 | 3 1 . . . . . . . . Hauler 1 | . . . . . 1 . . . . Recycler 5 | 1 . . . 3 1 . . . . Minesweeper 1 | . . . . . . . 1 . . Operator 1 | . . . . 1 . . . . . Swarmer 4 | . . 4 . . . . . . . Grunt 8 | . 1 . . 3 2 1 . 1 . Brawler 1 | . . . . . . . . 1 . Duelist 1 | . . . . . . 1 . . . Protector 1 | . . . . . . . . 1 . Sentry 3 | . . . . 3 . . . . . Demolisher 2 | . . . . . . . . 2 . Specialist 1 | . . . . . . . . 1 . Hunter 3 | . . . . . 3 . . . . Programmer 1 | . . . . . . 1 . . . Striker 1 | . . . . . . . . 1 . Packrat 1 | . . . . . . 1 . . . Samaritan 4 | . . . . . . . 1 . 3 Best Kill Streak 4 | 3 1 3 . 3 4 1 1 4 . Combat Bots Only 4 | . 1 3 . 3 2 1 . 4 . Max Kills in Single Turn 2 | 1 1 2 . 1 1 1 1 1 1 Gunslinging . | . . . . . . . . . . Exploded 2 | . . 2 . . . 1 . . . Melee 1 | . . . . . 1 . . . . Uniques/NPCs Destroyed 1 | . . . . . . . . 1 . Warlord (-4/Warlord) Combat | -11 -10 -10 -7 -5 -4 -4 -4 -4 -3 -------- Run | Yrd Mat Sub Scr Fac Fac Upp Upp War Pro Hostile Shots Fired 413 | . 2 8 5 29 57 32 . 274 6 Missed 138 | . . 4 3 8 27 9 . 86 1 Hits 275 | . 2 4 2 21 30 23 . 188 5 Melee 35 | . . . . . . 3 . 32 . Projectile 240 | . 2 4 2 21 30 20 . 156 5 AOE 7 | . . . . . . . . 7 . Critical Strikes 12 | . . . . . 3 2 . 7 . Damage Taken 6579 | . 37 49 42 504 623 739 . 4422 163 Core 1198 | . . . . 44 110 6 . 922 116 Absorbed by Shields . | . . . . . . . . . . Regen/Repaired (Parts) 248 | . . . . . . . . 248 . Core Remaining (%) 98 | 100 . . 100 95 . . . . . Volleys Fired 147 | 6 6 14 4 33 6 14 24 39 1 Largest 2 | 2 2 2 1 2 1 2 1 2 1 Hottest 133 | 100 100 100 85 48 85 133 100 123 50 Shots Fired 207 | 12 12 18 4 61 6 25 26 42 1 Gun 167 | 12 12 15 . 59 . 25 16 28 . Cannon 21 | . . . 2 . 5 . . 13 1 Launcher 3 | . . 3 . . . . . . . Special 16 | . . . 2 2 1 . 10 1 . Kinetic 106 | . . . . 59 . 11 9 27 . Thermal 82 | 12 12 15 2 1 5 14 17 4 . Explosive 3 | . . 3 . . . . . . . Electromagnetic . | . . . . . . . . . . Entropic 11 | . . . . . . . . 10 1 Robot Hit Streak 20 | 9 11 2 3 19 20 10 13 15 8 Robot Miss Streak 4 | . 1 2 . 4 1 4 2 3 . Penetration Max 2 | . . . . . . 1 . 2 . Secondary Targets . | . . . . . . . . . . Shots Hit Robots 174 | 9 9 5 4 48 18 23 21 33 4 Core Hits 77 | 5 3 4 . 22 4 10 12 14 3 Critical Kills 5 | . . . . 1 1 1 . 2 . Critical Parts Destroyed 10 | . . . . 1 2 4 2 1 . Critical Strikes 26 | 2 . . . 2 3 5 2 12 . Burn 2 | 2 . . . . . . . . . Destroy 13 | . . . . 1 . 3 2 7 . Smash 6 | . . . . 1 3 2 . . . Sunder 5 | . . . . . . . . 5 . Melee Attacks 34 | . . . 2 6 15 8 . . 3 Impact 27 | . . . . 5 14 8 . . . Slashing 3 | . . . . . . . . . 3 Piercing . | . . . . . . . . . . Sneak Attacks 16 | . . . 2 6 4 1 . . 3 Combat Hostiles . | . . . . . . . . . . Follow-up Attacks 2 | . . . . 1 1 . . . . Damage Inflicted 4892 | 115 123 185 . 1450 776 721 275 917 330 Guns 2073 | 115 123 37 . 912 . 474 213 199 . Cannons 899 | . . . . . 121 . . 706 72 Explosions 148 | . . 148 . . . . . . . Melee 1690 | . . . . 530 655 247 . . 258 Ramming 12 | . . . . . . . . 12 . Kinetic 1186 | . . . . 912 . 66 51 157 . Thermal 1186 | 115 123 37 . 8 121 408 224 150 . Explosive 148 | . . 148 . . . . . . . Electromagnetic . | . . . . . . . . . . Impact 1432 | . . . . 530 655 247 . . . Slashing 258 | . . . . . . . . . 258 Piercing . | . . . . . . . . . . Entropic 670 | . . . . . . . . 598 72 Highest Corruption 5 | . . . . 2 4 4 4 5 5 Average Corruption 3 | . . . . 1 2 4 4 3 5 Corruption Purged . | . . . . . . . . . . Corruption Blocked . | . . . . . . . . . . Effects 54 | . . . . 3 4 25 11 7 4 Message Errors 13 | . . . . 1 3 5 1 2 1 Matter Fused 14 | . . . . . . 8 3 2 1 Heat Flow Errors 7 | . . . . 1 . 3 1 . 2 Energy Discharges 7 | . . . . 1 1 3 1 1 . Parts Fused 1 | . . . . . . 1 . . . Data Loss (minor) 6 | . . . . . . 4 1 1 . Data Loss (major) 1 | . . . . . . . 1 . . Misfires 3 | . . . . . . 1 2 . . Alerts 2 | . . . . . . . 1 1 . Overload Shots . | . . . . . . . . . . Overflow Damage 686 | . . 3 . 271 274 138 . . . Projectiles 1 | . . . . . 1 . . . . Explosions 3 | . . 3 . . . . . . . Melee 682 | . . . . 271 273 138 . . . Knockbacks 5 | . . . . 1 3 1 . . . Impact 5 | . . . . 1 3 1 . . . Kinetic . | . . . . . . . . . . Secondary . | . . . . . . . . . . Self-Inflicted Damage 16 | . . 16 . . . . . . . Shots 1 | . . 1 . . . . . . . Rammed . | . . . . . . . . . . Targets Rammed 2 | . . . . . . . . 2 . Kicked 2 | . . . . . . . . 2 . Crushed . | . . . . . . . . . . Highest Temperature 211 | 117 141 . 12 177 140 211 206 82 175 Average Temperature 59 | 43 78 . 7 38 67 70 49 33 84 Received Heat Transfer 554 | . 24 . 24 153 70 145 . 120 18 Siege Activations . | . . . . . . . . . . Martial Activations . | . . . . . . . . . . Shielding Activations . | . . . . . . . . . . Robots Disrupted . | . . . . . . . . . . Combat Hostiles . | . . . . . . . . . . Robots Corrupted 8 | . . . . 2 6 . . . . Combat Hostiles 3 | . . . . . 3 . . . . Parts Fried 12 | . . . . 7 2 3 . . . Impact Corruptions 23 | . . . . 9 10 4 . . . Robots Melted . | . . . . . . . . . . Combat Hostiles . | . . . . . . . . . . Parts Melted 4 | . 1 . . . . 2 1 . . Heat Transferred 2341 | 481 370 111 . 25 148 675 475 56 . Parts Sabotaged . | . . . . . . . . . . Parts Stolen . | . . . . . . . . . . Parts Stripped . | . . . . . . . . . . Power Chain Reactions . | . . . . . . . . . . Alert | -11 -10 -10 -7 -5 -4 -4 -4 -4 -3 ------- Run | Yrd Mat Sub Scr Fac Fac Upp Upp War Pro Maximum Alert Level 2 | . . . . 2 2 . . . . Low Security (%) 39 | 100 100 . . 29 25 . . . . Level 1 27 | . . . . 41 12 . . . . Level 2 32 | . . . . 28 61 . . . . Level 3 . | . . . . . . . . . . Level 4 . | . . . . . . . . . . Level 5 . | . . . . . . . . . . High Security . | . . . . . . . . . . Max Security . | . . . . . . . . . . Peak Influence 559 | 10 26 . . 461 559 . . . . Initial 181 | . . . . . 181 . . . . Average 254 | 1 7 . . 267 382 . . . . Influence Increases 2409 | 20 58 90 . 777 702 396 10 356 . Destroy 0b10 Robot/C 1300 | . 20 80 . 420 260 260 . 260 . Destroy 0b10 Robot/NC 145 | 20 5 . . 60 30 5 10 15 . Destroy Leader 212 | . 10 10 . 100 42 50 . . . Allied During Kill 208 | . . . . 50 71 36 . 51 . Successful Hack 25 | . 23 . . 2 . . . . . Disable Machine 240 | . . . . 45 195 . . . . Destroy Structure 204 | . . . . 100 104 . . . . Lose Combat Pursuer 75 | . . . . . . 45 . 30 . Influence Decreases 2409 | 20 58 90 . 407 521 737 220 320 36 Entered New Map 470 | . . . . . 189 205 40 . 36 Time Decay 1503 | 20 58 90 . 357 222 482 180 94 . Lost Part 195 | . . . . 30 10 50 . 105 . Lost Ally 241 | . . . . 20 100 . . 121 . Squads Dispatched 10 | . 1 . . 5 4 . . . . Investigation 4 | . 1 . . 2 1 . . . . Extermination 2 | . . . . 1 1 . . . . Reinforcement 4 | . . . . 2 2 . . . . Assault . | . . . . . . . . . . Garrison . | . . . . . . . . . . Intercept . | . . . . . . . . . . Searches Triggered . | . . . . . . . . . . Construction Impeded . | . . . . . . . . . . Haulers Reinforced 2 | . . . . . 2 . . . . Active Scanning Responses . | . . . . . . . . . . Cargo Convoy Interrupts . | . . . . . . . . . . Stealth | -11 -10 -10 -7 -5 -4 -4 -4 -4 -3 --------- Run | Yrd Mat Sub Scr Fac Fac Upp Upp War Pro Distress Signals 5 | . . . . 1 3 . . 1 . Communications Jammed 23 | . . . . . 1 . . 22 . Distress Signals 23 | . . . . . 1 . . 22 . Times Spotted 87 | . 4 6 2 21 12 10 . 31 1 Peak Tracking Total 12 | . 2 3 2 5 4 4 . 12 1 Tactical Retreats 3 | . . . . . . 2 . 1 . Traps | -11 -10 -10 -7 -5 -4 -4 -4 -4 -3 ------- Run | Yrd Mat Sub Scr Fac Fac Upp Upp War Pro Traps Triggered 4 | . . . . 3 1 . . . . Indirectly . | . . . . . . . . . . Trap Hack Attempts . | . . . . . . . . . . Triggered . | . . . . . . . . . . Disarmed . | . . . . . . . . . . Reprogrammed . | . . . . . . . . . . Reused 1 | . . . 1 . . . . . . Traps Extracted 2 | . . . . . . . . 2 . Installed 1 | . . . 1 . . . . . . Triggered . | . . . . . . . . . . Most Traps Carried 8 | . . . 1 . . . 6 8 8 Machines | -11 -10 -10 -7 -5 -4 -4 -4 -4 -3 ---------- Run | Yrd Mat Sub Scr Fac Fac Upp Upp War Pro Machines Disabled 20 | . . 1 2 3 13 . . 1 . Max in Single Turn 1 | . . 1 1 . 1 . . 1 . Machines Repaired . | . . . . . . . . . . Machines Dismantled . | . . . . . . . . . . Machines Sabotaged . | . . . . . . . . . . Overloaded Fab Kills . | . . . . . . . . . . Hacking | -11 -10 -10 -7 -5 -4 -4 -4 -4 -3 --------- Run | Yrd Mat Sub Scr Fac Fac Upp Upp War Pro Machines Accessed 16 | . 3 1 2 7 1 . 1 1 . Terminals 5 | . 2 . . 2 . . 1 . . Fabricators 1 | . . . . 1 . . . . . Repair Stations 2 | . 1 . . 1 . . . . . Recycling Units 3 | . . . . 2 1 . . . . Scanalyzers 1 | . . . . 1 . . . . . Garrison Access . | . . . . . . . . . . Total Hacks 25 | . 5 1 2 12 2 . 2 1 . Successful 15 | . 2 1 2 7 . . 2 1 . Failed 10 | . 3 . . 5 2 . . . . Catastrophic 6 | . 1 . . 5 . . . . . Database Lockouts . | . . . . . . . . . . Manual 10 | . 4 . . 3 2 1 . . . Terminals 8 | . 4 . . 2 . . 2 . . Fabricators 1 | . . . . 1 . . . . . Repair Stations 3 | . 1 . . 2 . . . . . Recycling Units 4 | . . . . 2 2 . . . . Scanalyzers 5 | . . . . 5 . . . . . Garrison Access . | . . . . . . . . . . Terminal Hacks 8 | . 1 1 2 1 . . 2 1 . Record 3 | . . . 1 . . . 2 . . Part Schematic 1 | . 1 . . . . . . . . Open Door 1 | . . . . . . . . 1 . Open DSF 1 | . . . . 1 . . . . . Proto ID Catalog 2 | . . 1 1 . . . . . . Fabricator Hacks . | . . . . . . . . . . Repair Station Hacks 1 | . 1 . . . . . . . . Refit 1 | . 1 . . . . . . . . Recycling Unit Hacks . | . . . . . . . . . . Scanalyzer 5 | . . . . 5 . . . . . Insert Component 1 | . . . . 1 . . . . . Analyze 3 | . . . . 3 . . . . . Retrieve Study 1 | . . . . 1 . . . . . Garrison Access Hacks . | . . . . . . . . . . Unauthorized Hacks 1 | . . . . 1 . . . . . Terminals . | . . . . . . . . . . Fabricators . | . . . . . . . . . . Repair Stations . | . . . . . . . . . . Recycling Units 1 | . . . . 1 . . . . . Fedlink 1 | . . . . 1 . . . . . Scanalyzers . | . . . . . . . . . . Garrison Access . | . . . . . . . . . . Data Cores Recovered 2 | . . . . 2 . . . . . Used . | . . . . . . . . . . Hacking Detections 8 | . 3 . . 4 1 . . . . Full Trace Events 1 | . . . . . 1 . . . . Feedback Events 1 | . . . . . 1 . . . . Corruption 1 | . . . . . 1 . . . . Feedback Blocked . | . . . . . . . . . . Robot Schematics Acquired . | . . . . . . . . . . Robots Built . | . . . . . . . . . . Authchips . | . . . . . . . . . . Time . | . . . . . . . . . . Total Robot Build Rating . | . . . . . . . . . . Part Schematics Acquired 2 | . 1 . . 1 . . . . . Parts Built . | . . . . . . . . . . Authchips . | . . . . . . . . . . Time . | . . . . . . . . . . Total Part Build Rating . | . . . . . . . . . . Part Studies Acquired 1 | . . . . 1 . . . . . Parts Repaired . | . . . . . . . . . . Time . | . . . . . . . . . . Parts Recycled . | . . . . . . . . . . Recycled Matter . | . . . . . . . . . . Retrieved Matter . | . . . . . . . . . . Retrieved Components . | . . . . . . . . . . Parts Scanalyzed 1 | . . . . 1 . . . . . Part Schematics Acquired 1 | . . . . 1 . . . . . Parts Damaged . | . . . . . . . . . . Bothacking | -11 -10 -10 -7 -5 -4 -4 -4 -4 -3 ------------ Run | Yrd Mat Sub Scr Fac Fac Upp Upp War Pro Used RIF Installer . | . . . . . . . . . . Robots Hacked 4 | . . . 2 1 1 . . . . Non-combat 2 | . . . . 1 1 . . . . Combat 2 | . . . 2 . . . . . . Robot Hacks Applied 4 | . . . 2 1 1 . . . . parse_system 2 | . . . 2 . . . . . . find_chute 2 | . . . . 1 1 . . . . Relay Couplers Released . | . . . . . . . . . . Fabnet Peak Effective % . | . . . . . . . . . . Robots Rewired 6 | . . . . . . . . 6 . Allies Hacked 1 | . . . . . 1 . . . . Hacks Repelled 1 | . . . . . . . . 1 . Allies | -11 -10 -10 -7 -5 -4 -4 -4 -4 -3 -------- Run | Yrd Mat Sub Scr Fac Fac Upp Upp War Pro Total Allies 14 | . . . 1 1 6 . . 6 . Largest Group 6 | . . . 1 1 5 1 1 6 . Highest-Rated Group 419 | . . . 117 117 235 141 124 419 . Highest-Rated Ally 141 | . . . 117 117 141 141 124 124 . Total Orders 2 | . . . 2 . . . . . . STAY 1 | . . . 1 . . . . . . FOLLOW 1 | . . . 1 . . . . . . Ally Attacks 227 | . . . 6 55 86 37 . 43 . Total Damage 7746 | . . . 280 2820 1940 1468 . 1238 . Kills 49 | . . . . 19 11 10 . 9 . Allies Corrupted . | . . . . . . . . . . Allies Melted 4 | . . . 1 . . . . 3 . Intel | -11 -10 -10 -7 -5 -4 -4 -4 -4 -3 ------- Run | Yrd Mat Sub Scr Fac Fac Upp Upp War Pro Active Infowar (turns) 3500 | . . . . 1044 472 1156 645 183 . Sensors 3500 | . . . . 1044 472 1156 645 183 . Jamming 578 | . . . . . 302 259 . 17 . ECM 389 | . . . . . . 389 . . . Robot Analysis Total . | . . . . . . . . . . Derelict Logs Recovered 6 | . . 1 2 . . 2 1 . . Drone Launches . | . . . . . . . . . . Drone Recoveries . | . . . . . . . . . . Exploration | -11 -10 -10 -7 -5 -4 -4 -4 -4 -3 ------------- Run | Yrd Mat Sub Scr Fac Fac Upp Upp War Pro Turns Passed 12441 | 130 178 753 6161 1141 477 1255 712 1411 223 Spaces Moved 7270 | 85 90 444 4247 550 201 561 325 650 117 Core 12 | 5 . . . . . . . 7 . Treads . | . . . . . . . . . . Legs 7258 | 80 90 444 4247 550 201 561 325 643 117 Wheels . | . . . . . . . . . . Hover . | . . . . . . . . . . Flight . | . . . . . . . . . . Fastest Speed 50 | 50 120 120 120 120 190 190 190 120 120 Average Speed 148 | 115 120 154 131 165 190 190 190 183 120 Slowest Speed 750 | 120 120 190 190 190 190 190 190 750 120 Overloaded Moves . | . . . . . . . . . . Propulsion Burnouts . | . . . . . . . . . . Robots Hopped . | . . . . . . . . . . Potential Cave-ins . | . . . . . . . . . . Cave-ins Triggered . | . . . . . . . . . . Exploration Rate (%) 40 | 4 22 19 92 17 7 69 54 87 32 Regions Visited 9 Branch Regions 6 Pre-discovered Areas 2 | . . . . . . 2 . . . Known Exits Taken 4 | . . . . 1 1 1 1 . . Unknown Exits Taken 5 | 1 1 1 1 . . . . 1 . Scrap Searched 12 | . . 1 7 . . 3 1 . . Spaces Dug 9 | . . . 7 . . 2 . . . Terrain Destroyed 34 | . . 19 6 7 . 2 . . . Melee 2 | . . . . . . 2 . . . Projectile 6 | . . . . 6 . . . . . AOE 19 | . . 19 . . . . . . . Terrain Rammed . | . . . . . . . . . . Walls Destroyed . | . . . . . . . . . . Machines Disabled . | . . . . . . . . . . Actions | -11 -10 -10 -7 -5 -4 -4 -4 -4 -3 --------- Run | Yrd Mat Sub Scr Fac Fac Upp Upp War Pro Total 8697 | 101 149 496 4824 721 278 715 394 824 195 Wait 855 | 3 42 24 463 70 28 118 35 8 64 Move 7261 | 84 89 443 4246 549 200 560 324 649 117 Hop . | . . . . . . . . . . Pick Up 89 | 2 6 2 46 6 6 3 3 12 3 Fast Attach 59 | 6 1 3 7 16 5 3 1 16 1 Attach 28 | . . . 2 13 1 2 1 8 1 Detach 15 | . 1 . 1 6 1 . . 5 1 Swap 52 | . 2 2 12 7 10 4 3 12 . Drop 102 | . 2 8 40 15 8 3 3 20 3 Fire 147 | 6 6 14 4 33 6 14 24 39 1 Melee 31 | . . . 2 5 13 8 . . 3 Ram . | . . . . . . . . . . Kick 2 | . . . . . . . . 2 . Crush . | . . . . . . . . . . Escape Stasis . | . . . . . . . . . . Rewire 53 | . . . . . . . . 53 . Trap 1 | . . . 1 . . . . . . Miscellaneous 2 | . . . . 1 . . . . 1 Route ------- -11/Scrapyard -10/Materials -10/Subcaves (discovered 2 exits: Mat / *Scr) -7/Scraptown (discovered 2 exits: *Fac x2) -5/Factory -4/Factory -4/Upper Caves -4/Upper Caves -4/Warlord -3/Proximity Caves History --------- Turn | Location | Event 5 | -11/Scrapyard | Discovered new exit (range 14) 131 | -11/Scrapyard | Entered Materials 132 | -10/Materials | Met a group of wandering Federalists 246 | -10/Materials | Discovered new exit (range 9) 309 | -10/Materials | Entered Subcaves 310 | -10/Subcaves | Continued accompanying wandering Federalists (4) 310 | -10/Subcaves | Approached by a straggling Scientist 315 | -10/Subcaves | Build established: Mutant 341 | -10/Subcaves | Ambushed by angry Subdweller bent on revenge 635 | -10/Subcaves | Visited 4L-MR0's lab 667 | -10/Subcaves | Found Flightbrick 956 | -10/Subcaves | Identified exit to Materials 1062 | -10/Subcaves | Entered Scraptown 1134 | -7/Scraptown | Visited Supply Room 1156 | -7/Scraptown | Visited Bundlers 1237 | -7/Scraptown | Scanned Subdweller tech in exchange for log data 1240 | -7/Scraptown | Learned location of 2 exits from Lower Caves 1242 | -7/Scraptown | Learned location of 2 exits from Research 1293 | -7/Scraptown | Visited Awakened 1560 | -7/Scraptown | Visited Supply Room 1591 | -7/Scraptown | Visited Red Mages 1764 | -7/Scraptown | Visited UFD Registry 1768 | -7/Scraptown | Registered with UFD as "Softpod" 1809 | -7/Scraptown | Visited Scrapoid Pod Storage 1842 | -7/Scraptown | Visited Science Guys 1902 | -7/Scraptown | Visited LU-1G1's Boring Crew 1927 | -7/Scraptown | Visited Infowarlord's Domain 2178 | -7/Scraptown | Visited A0-MCA Data Center 2197 | -7/Scraptown | Visited Modified Component R&D 2214 | -7/Scraptown | Visited Science Testing Area 2234 | -7/Scraptown | Visited Curators Association 2275 | -7/Scraptown | Visited Botcube Research 2298 | -7/Scraptown | Found Lrg. Botcube 2981 | -7/Scraptown | Visited Cyclists 2991 | -7/Scraptown | Entered Cyclist Reading Room 3236 | -7/Scraptown | Discovered new exit (range 13) 3611 | -7/Scraptown | Found Scrap Suit 5409 | -7/Scraptown | Lrg. Botcube activated 5437 | -7/Scraptown | Lrg. Botcube completed mutation into flying form, armed with 4 melee weapons. 5479 | -7/Scraptown | Attached CPS modules to *Rapid Suppression Cube. 5580 | -7/Scraptown | Found Exp. Sensor Array 5804 | -7/Scraptown | Given an A rating by A0-MCA 5807 | -7/Scraptown | Found A0-MCA's Component Scanner 5861 | -7/Scraptown | Visited Derelict Rescue Squad 5870 | -7/Scraptown | Found DRS Beacon 5963 | -7/Scraptown | Found Scrapoid Pod 6481 | -7/Scraptown | Warned about trapping Scraptown 6691 | -7/Scraptown | Met Optimus 6691 | -7/Scraptown | Accepted into 0bPrime 7091 | -7/Scraptown | Civil war broke out across Scraptown 7091 | -7/Scraptown | Attached CPS modules to Optimus. 7101 | -7/Scraptown | Found Prototype Special Weapon 7102 | -7/Scraptown | Identified LU-1G1's Laser Shovel 7125 | -7/Scraptown | Found Field Manipulator 7187 | -7/Scraptown | Found Prototype Processor 7217 | -7/Scraptown | Discovered new exit (range 6) 7223 | -7/Scraptown | Entered Factory 7223 | -5/Factory | Accompanied by 1 ally 7223 | -5/Factory | Evolved 10 slots: Utility x10 7247 | -5/Factory | Lost 3 allies 7279 | -5/Factory | Identified Expert System 7718 | -5/Factory | Loaded intel: 8 recycling unit locations 8066 | -5/Factory | Lrg. Botcube activated 8077 | -5/Factory | Build established: Scavenger-Mutant 8086 | -5/Factory | Lrg. Botcube completed mutation into treaded form, armed with 1 gun, 1 melee weapon. 8088 | -5/Factory | Attached CPS modules to *Abomination. 8307 | -5/Factory | Discovered new exit (range 13) 8360 | -5/Factory | Identified exit to Factory 8364 | -5/Factory | Entered another Factory area 8364 | -4/Factory | Accompanied by 1 ally 8364 | -4/Factory | Evolved 2 slots: Utility x2 8437 | -4/Factory | Build established: Scavenger-Gladiator 8486 | -4/Factory | Allies destroyed *Abomination 8507 | -4/Factory | Found Lrg. Botcube 8652 | -4/Factory | Scrapoid Pod released 04F05-D (x5) 8775 | -4/Factory | Discovered new exit (range 14) 8779 | -4/Factory | Lrg. Botcube activated 8787 | -4/Factory | Lost 3 allies 8789 | -4/Factory | Attached CPS modules to Large Mutated Botcube. 8807 | -4/Factory | Lrg. Botcube completed mutation into flying form, armed with 4 guns. 8834 | -4/Factory | Identified exit to Upper Caves 8841 | -4/Factory | Entered Upper Caves 8841 | -4/Upper Caves | Accompanied by 1 ally 8847 | -4/Upper Caves | Learned location of Testing (-3) 8929 | -4/Upper Caves | Encountered a Warlord checkpoint 9105 | -4/Upper Caves | Spotted B-86 Titan 9125 | -4/Upper Caves | Allies destroyed B-86 Titan 9316 | -4/Upper Caves | Learned location of Armory (-3) 9389 | -4/Upper Caves | Build established: Scavenger-Mutant 9415 | -4/Upper Caves | Attracted the attention of an 0b10 checkpoint 9491 | -4/Upper Caves | Acquired the password to a Derelict Tinkerer's latest research 9533 | -4/Upper Caves | Found Molecular Deconstructor 9976 | -4/Upper Caves | Build established: Derelict-Mutant 10029 | -4/Upper Caves | Discovered new exit (range 14) 10058 | -4/Upper Caves | Identified exit to Upper Caves 10096 | -4/Upper Caves | Entered another Upper Caves area 10096 | -4/Upper Caves | Accompanied by 1 ally 10568 | -4/Upper Caves | Discovered new exit (range 15) 10634 | -4/Upper Caves | Identified exit to Warlord 10808 | -4/Upper Caves | Entered Warlord 10808 | -4/Warlord | Accompanied by 1 ally 10845 | -4/Warlord | Discovered new exit (range 9) 10886 | -4/Warlord | System corruption cleaned by Quarantine Array 11163 | -4/Warlord | Rebuked by Warlord 11188 | -4/Warlord | Warlord's base attacked by MAIN.C 11343 | -4/Warlord | Found Vortex Catalyst Activator 11346 | -4/Warlord | Found Vortex Cannon 11349 | -4/Warlord | Found Vortex Cannon 11538 | -4/Warlord | Warlord forces counterattacked 11640 | -4/Warlord | Build established: Trapper-Mutant 11826 | -4/Warlord | Found Exp. Core Analyzer 11831 | -4/Warlord | Found Ghost Barrier 11844 | -4/Warlord | Spotted Striker 11863 | -4/Warlord | Warlord base infiltrated, sounded retreat 11909 | -4/Warlord | Destroyed Striker 11921 | -4/Warlord | Lost 8 allies 11930 | -4/Warlord | Core integrity fell below 50% 11938 | -4/Warlord | Lost 10 parts (1p2n5u2w) 12015 | -4/Warlord | Found Lrg. Botcube 12096 | -4/Warlord | Found Hvy. Autocannon 12123 | -4/Warlord | P-70 Sage assimilated allied AP-XB6(m) 12126 | -4/Warlord | Spotted B-90 Cyclops 12145 | -4/Warlord | P-80 Master assimilated allied UG-F4K(g) 12146 | -4/Warlord | Attached CPS modules to Warlord. 12153 | -4/Warlord | Rewired B-90 Cyclops 12181 | -4/Warlord | Lost 11 allies 12184 | -4/Warlord | Found Exp. Melee Analysis Suite 12190 | -4/Warlord | Spotted Executioner 12191 | -4/Warlord | Spotted Striker 12199 | -4/Warlord | Murdered Warlord 12200 | -4/Warlord | Attacked by Warlord forces 12204 | -4/Warlord | Found Adv. Powered Armor 12215 | -4/Warlord | Core integrity fell below 20% 12219 | -4/Warlord | Entered Proximity Caves 12220 | -3/Proximity Caves | Activated DRS Beacon 12248 | -3/Proximity Caves | Lost 8 parts (1p1n5u1w) 12318 | -3/Proximity Caves | Build established: Scavenger-Mutant 12433 | -3/Proximity Caves | Spotted B-86 Titan 12442 | -3/Proximity Caves | Destroyed by B-86 Titan with Railgun Last Messages --------------- 12382_ Sneak attack on MR-O4N(S). 12382_ MR-O4N(S) destroyed. 12386_ Acquired Neutrino Core. 12396_ XTX66IPXXZL,&HNN|T=/ 12438_ 44-8QJ(h) knocked back. 12438_ Slug penetrates HT-Q55(h). 12440_ HV Slug penetrates B-86 Titan. 12440_ HV Slug penetrates Wall. 12440_ HV Slug penetrates B-86 Titan. 12440_ HV Slug penetrates Wall. 12440_ HV Slug penetrates B-86 Titan. 12441_ Wall collapses. 12441_ Slug penetrates B-86 Titan. 12442_ B-86 Titan activates siege mode. 12442_ Enh. Flexi-carbon Leg destroyed. 12442_ Exp. Melee Analysis Suite destroyed. 12442_ Penetrated by Slug. Map ----- +----------------------------------------------------+ | ?????????????????????????????????????????????????? | | ?????????????????????????????????????????????????? | | ?????????????????????????????????????????????????? | | ?????????????????????????????????????????????????? | | ?????????????????????????????????????????????????? | | ?????????????????????????????????????????????????? | | ?????????????????????????????????????????????????? | | ?????????????????????????????????????????????????? | | ?????????????????????????????????????????????????? | | ?????????????????????????????????????????????????? | | ?????????????????????????????????????????????????? | | ?????????????????????????????????????????????????? | | ?????????????????????????????????????????????????? | | ?????????????????????????????????????????????????? | | ?????????????????????????????????????????????????? | | ???????????????????#?????????????????????????????? | | ?????????????????? #?????????????????????????????? | | ?????????????????? #?????????????????????????????? | | ?????????????????? #???????##????????????????????? | | #???????????????? ##?????# ?????????????????????? | | ???????????????? ##??## ?????????????????????? | | ######?????????? #?## ??????????????????????? | | ##????????# #??# ??????????????????????? | | #???##### #???# #??????????????????????? | | ## #?### #???# ##?????????????????????? | | ## ### #####%@ ##????????????????????? | | #?# #### hh ##???????????????????? | | # ### #??# h #??????????????? | | # ## #### ####; #??????????????? | | # ## #??????????????? | | ## "" #?# #?????????????? | | ### """" #?? ????????????? | | #?# "" #?? ; ???????????? | | ##?# "" #??# ### B???????????? | | ##??# """" #???# ##??? B???????????? | | ## ####??? """" #????###?????????????????? | | ## ##?????# """" ????????????????????????? | | ######?????? ? ##???????????????????????? | | #?????????? # ??? #????????????????????????? | | #?????????? #### ???##????????????????????????? | | ??????????#???? ?????????????????????????????? | | # ?????????????? ?????????????????????????????? | | ## ????????????? ?????????????????????????????? | | ??# ????????????? #?????????????????????????????? | | ???##????????????? ??????????????????????????????? | | ?????????????????????????????????????????????????? | | ?????????????????????????????????????????????????? | | ?????????????????????????????????????????????????? | | ?????????????????????????????????????????????????? | | ?????????????????????????????????????????????????? | +----------------------------------------------------+ Best States ------------- Heat Dissipation 133 Coolant Potential 100 Energy Generation 25 Energy Capacity 700 Matter Stores 400 Matter Capacity 400 Sight Range 16 Robot Scan Range 20 Terrain Scan Density 10 ECM Strength 1 Jamming Range 16 Power Amplification 30 Armor Coverage 625 Weapon Shielding 66 Point Defense Rating 80 Melee Speed Boost 40 Phase Shifting 10 Evasion (%) 55 Targeting Accuracy 8 Melee Accuracy 12 Target Analysis 8 Core Analysis 8 Recoil Reduction 6 Salvage Targeting 4 Defensive Hacking 20 Trap Extractor Capacity 8 Item Schematics ----------------- Huge Storage Unit | -10/Materials | Hacked Arm. Leg | -5/Factory | Scanalyzed Robot Schematics ------------------ None Fabricated ------------ Nothing Repaired ---------- Nothing Studied --------- Hvy. Mace | -5/Factory | Hacked Alien Tech Used ----------------- None Achievements -------------- None Challenges ------------ None Game ------ Seed QuantumProjectionNanovents Manual? 0 Play Time 02:04:45 Cumulative 1077.7 hours Start 2025.11.17 @ 17:19:36 End 2025.11.17 @ 21:48:42 Sessions 1 Manual Loads 0 Difficulty Rogue Special Mode None Game No. 385 Rogue 380 Adventurer 4 Explorer 1 Win Type - Total 23 Types 13/3/1/2/0/1/0/0/2/1 Lore% 96 Gallery% 94 Achievement% 80 Wizard Run 0 Options --------- Layout 0 ASCII 0 Keyboard 0 Movement Numpad Keybinds 0 Fullscreen 2 Font 18/SmallcapsGlow Map View 76x50 Zoom Use 1% Tactical HUD 1 Map Filters NONE Filters NONE Steam 1 RUN: 4404bb16-2414-48cd-8e89-b0279cecd192